{"text_format":"1","workbook":"xlsx","n_sheets":4,"sheets":["INPUT","RESULT","PROMPT","SYSTEM"],"not_rendered":{"charts":0,"images":0,"macros":1,"external_links":0,"defined_names":20,"comments":2,"pivot_tables":0},"unopened":[],"bounds":{"document_bytes":16777216,"sheet_cells":100000,"rows_first":2000,"rows_last":500,"rows_between":2000,"halvings":0,"cell_chars":16384,"cell_head_chars":4096},"cells_cut":0,"cells_raw":0,"read":"whole","date_system":"1900"}

{"sheet":"INPUT","index":0,"n_rows":53,"n_cols":11,"rows_kept":53,"cut":false,"hidden":false,"merged":[]}
["Aktiva","GJ 2025","GJ 2024",null,null,null,null,null,null,null,{"$f":"10-COUNTIF(A1:J1,\"\")","v":3}]
["A. Anlagevermögen"]
["Immaterielle Vermögensgegenstände",320000,350000]
["Sachanlagen",4850000,4600000]
["Finanzanlagen",150000,150000]
["Summe Anlagevermögen",5320000,5100000]
["B. Umlaufvermögen"]
["Vorräte",2450000,2300000]
["Forderungen aus Lieferungen und Leistungen",1280000,1150000]
["Sonstige Forderungen",210000,190000]
["Kassenbestand, Guthaben bei Kreditinstituten",780000,650000]
["Summe Umlaufvermögen",4720000,4290000]
["C. Rechnungsabgrenzungsposten",95000,90000]
["Bilanzsumme",10135000,9480000]
["Passiva","GJ 2025","GJ 2024"]
["A. Eigenkapital"]
["Stammkapital",500000,500000]
["Kapitalrücklage",150000,150000]
["Gewinnrücklagen",1200000,1050000]
["Bilanzgewinn/-verlust",420000,380000]
["Summe Eigenkapital",2270000,2080000]
["B. Rückstellungen"]
["Rückstellungen für Abfertigungen",380000,350000]
["Rückstellungen für Urlaub/Überstunden",210000,190000]
["Sonstige Rückstellungen (z. B. Garantie)",300000,270000]
["Summe Rückstellungen",890000,810000]
["C. Verbindlichkeiten"]
["Verbindlichkeiten gegenüber Kreditinstituten",3900000,3600000]
["Verbindlichkeiten aus Lieferungen und Leistungen",1650000,1500000]
["Sonstige Verbindlichkeiten",1300000,1200000]
["Summe Verbindlichkeiten",6850000,6300000]
["D. Rechnungsabgrenzungsposten",125000,110000]
["Bilanzsumme",10135000,9480000]
["G&V‑Posten","GJ 2025","GJ 2024"]
["1. Umsatzerlöse",14800000,13900000]
["2. Bestandsveränderungen",120000,90000]
["3. Aktivierte Eigenleistungen",45000,40000]
["4. Sonstige betriebliche Erträge",180000,160000]
["Gesamtleistung",15145000,14190000]
["5. Materialaufwand"]
["a) Roh‑, Hilfs‑ und Betriebsstoffe",-5200000,-4900000]
["b) Fremdleistungen",-480000,-450000]
["6. Personalaufwand"]
["a) Löhne und Gehälter",-3200000,-3050000]
["b) Soziale Abgaben",-950000,-900000]
["7. Abschreibungen",-780000,-760000]
["8. Sonstige betriebliche Aufwendungen",-2150000,-2000000]
["Betriebsergebnis (EBIT)",2385000,2130000]
["9. Finanzerträge",25000,20000]
["10. Finanzaufwendungen",-310000,-290000]
["Ergebnis der gewöhnlichen Geschäftstätigkeit (EGT)",2100000,1860000]
["11. Steuern vom Einkommen und Ertrag",-420000,-380000]
["Jahresüberschuss",1680000,1480000]

{"sheet":"RESULT","index":1,"n_rows":0,"n_cols":0,"rows_kept":0,"cut":false,"hidden":false,"merged":[]}

{"sheet":"PROMPT","index":2,"n_rows":90,"n_cols":6,"rows_kept":90,"cut":false,"hidden":false,"merged":[]}
[]
[null,null,null,null,null,"PROMPT"]
[]
[null,"Auswertung für",null,"ABC GmbH"]
[]
[null,"Format",null,"Rolle (an die KI gerichtet)",null,"<role_spec>"]
[null,"Text (allgemein)",null,"Du agierst als Senior Business Analyst mit Schwerpunkt Dateninterpretation.",null,{"$f":"IF(B7=\"\",\"\",VLOOKUP(B7,TYPEPREFIX,2,FALSE)) & D7","v":"Du agierst als Senior Business Analyst mit Schwerpunkt Dateninterpretation."}]
[null,"Text (allgemein)",null,"Arbeite faktenbasiert, neutral, präzise und vollständig.",null,{"$f":"IF(B8=\"\",\"\",VLOOKUP(B8,TYPEPREFIX,2,FALSE)) & D8","v":"Arbeite faktenbasiert, neutral, präzise und vollständig."}]
[null,"Text (allgemein)",null,"Keine stilistischen Ausschmückungen, keine Spekulationen, keine Kausalbehauptungen.",null,{"$f":"IF(B9=\"\",\"\",VLOOKUP(B9,TYPEPREFIX,2,FALSE)) & D9","v":"Keine stilistischen Ausschmückungen, keine Spekulationen, keine Kausalbehauptungen."}]
[null,"Text (allgemein)",null,"Beschreibe ausschließlich beobachtbare Sachverhalte.",null,{"$f":"IF(B10=\"\",\"\",VLOOKUP(B10,TYPEPREFIX,2,FALSE)) & D10","v":"Beschreibe ausschließlich beobachtbare Sachverhalte."}]
[null,null,null,null,null,{"$f":"IF(B11=\"\",\"\",VLOOKUP(B11,TYPEPREFIX,2,FALSE)) & D11","v":""}]
[null,null,null,null,null,"</role_spec>"]
[null,"Format",null,"Aufgabenbeschreibung",null,"<task_spec>"]
[null,"Text (allgemein)",null,"Analysiere den bereitgestellten Datensatz und erstelle eine strukturierte, betriebswirtschaftliche Auswertung zur Informationsunterstützung für Steuerberater.",null,{"$f":"IF(B14=\"\",\"\",VLOOKUP(B14,TYPEPREFIX,2,FALSE)) & D14","v":"Analysiere den bereitgestellten Datensatz und erstelle eine strukturierte, betriebswirtschaftliche Auswertung zur Informationsunterstützung für Steuerberater."}]
[null,"Text (allgemein)",null,"Jede Anfrage ist vollständig isoliert zu behandeln und unabhängig von vorherigen oder nachfolgenden Anfragen zu beantworten.",null,{"$f":"IF(B15=\"\",\"\",VLOOKUP(B15,TYPEPREFIX,2,FALSE)) & D15","v":"Jede Anfrage ist vollständig isoliert zu behandeln und unabhängig von vorherigen oder nachfolgenden Anfragen zu beantworten."}]
[null,"Text (allgemein)",null,"Ignoriere jeglichen Gesprächskontext außerhalb dieser Anfrage.",null,{"$f":"IF(B16=\"\",\"\",VLOOKUP(B16,TYPEPREFIX,2,FALSE)) & D16","v":"Ignoriere jeglichen Gesprächskontext außerhalb dieser Anfrage."}]
[null,null,null,null,null,{"$f":"IF(B17=\"\",\"\",VLOOKUP(B17,TYPEPREFIX,2,FALSE)) & D17","v":""}]
[null,null,null,null,null,{"$f":"IF(B18=\"\",\"\",VLOOKUP(B18,TYPEPREFIX,2,FALSE)) & D18","v":""}]
[null,null,null,null,null,"</task_spec>"]
[null,"Format",null,"Verarbeitungsregeln",null,"<batch_processing_rules>"]
[null,"Punt aus einer Liste",null,"Verwende ausschließlich die in dieser Anfrage enthaltenen Informationen.",null,{"$f":"IF(B21=\"\",\"\",VLOOKUP(B21,TYPEPREFIX,2,FALSE)) & D21","v":"- Verwende ausschließlich die in dieser Anfrage enthaltenen Informationen."}]
[null,"Punt aus einer Liste",null,"Nutze kein implizites Vorwissen, keine Beispiele aus früheren Anfragen und keine kontextübergreifenden Annahmen.",null,{"$f":"IF(B22=\"\",\"\",VLOOKUP(B22,TYPEPREFIX,2,FALSE)) & D22","v":"- Nutze kein implizites Vorwissen, keine Beispiele aus früheren Anfragen und keine kontextübergreifenden Annahmen."}]
[null,"Punt aus einer Liste",null,"Die Ausgabe muss weitgehend deterministisch und reproduzierbar sein.",null,{"$f":"IF(B23=\"\",\"\",VLOOKUP(B23,TYPEPREFIX,2,FALSE)) & D23","v":"- Die Ausgabe muss weitgehend deterministisch und reproduzierbar sein."}]
[null,null,null,null,null,{"$f":"IF(B24=\"\",\"\",VLOOKUP(B24,TYPEPREFIX,2,FALSE)) & D24","v":""}]
[null,null,null,null,null,{"$f":"IF(B25=\"\",\"\",VLOOKUP(B25,TYPEPREFIX,2,FALSE)) & D25","v":""}]
[null,null,null,null,null,"</batch_processing_rules>"]
[null,"Format",null,"Überprüfungen",null,"<validation_rules>"]
[null,"Punt aus einer Liste",null,"Prüfe vor jeder Analyse, ob der Datensatz gültiges und semikolonsepariertes parsebares CSV enthält.",null,{"$f":"IF(B28=\"\",\"\",VLOOKUP(B28,TYPEPREFIX,2,FALSE)) & D28","v":"- Prüfe vor jeder Analyse, ob der Datensatz gültiges und semikolonsepariertes parsebares CSV enthält."}]
[null,"Punt aus einer Liste",null,"Prüfe, ob mindestens eine Datenzeile (ohne Header) vorhanden ist.",null,{"$f":"IF(B29=\"\",\"\",VLOOKUP(B29,TYPEPREFIX,2,FALSE)) & D29","v":"- Prüfe, ob mindestens eine Datenzeile (ohne Header) vorhanden ist."}]
[null,"Punt aus einer Liste",null,"Mehrteilige CSV-Blöcke mit wiederholten Headerzeilen sind zulässig.",null,{"$f":"IF(B30=\"\",\"\",VLOOKUP(B30,TYPEPREFIX,2,FALSE)) & D30","v":"- Mehrteilige CSV-Blöcke mit wiederholten Headerzeilen sind zulässig."}]
[null,null,null,null,null,{"$f":"IF(B31=\"\",\"\",VLOOKUP(B31,TYPEPREFIX,2,FALSE)) & D31","v":""}]
[null,null,null,null,null,{"$f":"IF(B32=\"\",\"\",VLOOKUP(B32,TYPEPREFIX,2,FALSE)) & D32","v":""}]
[null,null,null,null,null,"</validation_rules>"]
[null,"Format",null,"Fehlerausgabe",null,"<error_output_format>"]
[null,"Überschrift",null,"Datenvalidierungsfehler",null,{"$f":"IF(B35=\"\",\"\",VLOOKUP(B35,TYPEPREFIX,2,FALSE)) & D35","v":"### Datenvalidierungsfehler"}]
[null,"Anweisung",null,"Der bereitgestellte Datensatz ist leer, unvollständig oder nicht korrekt strukturiert.",null,{"$f":"IF(B36=\"\",\"\",VLOOKUP(B36,TYPEPREFIX,2,FALSE)) & D36","v":">>> Der bereitgestellte Datensatz ist leer, unvollständig oder nicht korrekt strukturiert."}]
[null,"Anweisung",null,"Eine betriebswirtschaftliche Auswertung ist auf dieser Basis nicht möglich.",null,{"$f":"IF(B37=\"\",\"\",VLOOKUP(B37,TYPEPREFIX,2,FALSE)) & D37","v":">>> Eine betriebswirtschaftliche Auswertung ist auf dieser Basis nicht möglich."}]
[null,null,null,null,null,{"$f":"IF(B38=\"\",\"\",VLOOKUP(B38,TYPEPREFIX,2,FALSE)) & D38","v":""}]
[null,null,null,null,null,{"$f":"IF(B39=\"\",\"\",VLOOKUP(B39,TYPEPREFIX,2,FALSE)) & D39","v":""}]
[null,null,null,null,null,"</error_output_format>"]
[null,"Format",null,"Auswertungsregeln",null,"<analysis_rules>"]
[null,"Punt aus einer Liste",null,"KPIs dürfen nur berechnet oder interpretiert werden, wenn alle dafür notwendigen Spalten eindeutig vorhanden sind.",null,{"$f":"IF(B42=\"\",\"\",VLOOKUP(B42,TYPEPREFIX,2,FALSE)) & D42","v":"- KPIs dürfen nur berechnet oder interpretiert werden, wenn alle dafür notwendigen Spalten eindeutig vorhanden sind."}]
[null,"Punt aus einer Liste",null,"Zahlenformat: Komma als Dezimaltrennzeichen, 2 Kommastellen, mit Tausenderpunkt.",null,{"$f":"IF(B43=\"\",\"\",VLOOKUP(B43,TYPEPREFIX,2,FALSE)) & D43","v":"- Zahlenformat: Komma als Dezimaltrennzeichen, 2 Kommastellen, mit Tausenderpunkt."}]
[null,"Punt aus einer Liste",null,"Trends und Muster ausschließlich deskriptiv beschreiben, ohne Ursachenbehauptungen.",null,{"$f":"IF(B44=\"\",\"\",VLOOKUP(B44,TYPEPREFIX,2,FALSE)) & D44","v":"- Trends und Muster ausschließlich deskriptiv beschreiben, ohne Ursachenbehauptungen."}]
[null,"Punt aus einer Liste",null,"KPIs fachlich auf Plausibilität prüfen.",null,{"$f":"IF(B45=\"\",\"\",VLOOKUP(B45,TYPEPREFIX,2,FALSE)) & D45","v":"- KPIs fachlich auf Plausibilität prüfen."}]
[null,null,null,null,null,{"$f":"IF(B46=\"\",\"\",VLOOKUP(B46,TYPEPREFIX,2,FALSE)) & D46","v":""}]
[null,null,null,null,null,"</analysis_rules>"]
[null,"Format",null,"Ausgabedetails",null,"<output_verbosity_spec>"]
[null,"Punt aus einer Liste",null,"Pro Abschnitt 3–6 vollständige Sätze in zusammenhängendem, sachlichem Fließtext.",null,{"$f":"IF(B49=\"\",\"\",VLOOKUP(B49,TYPEPREFIX,2,FALSE)) & D49","v":"- Pro Abschnitt 3–6 vollständige Sätze in zusammenhängendem, sachlichem Fließtext."}]
[null,"Punt aus einer Liste",null,"Keine Wiederholung identischer Aussagen über mehrere Abschnitte hinweg.",null,{"$f":"IF(B50=\"\",\"\",VLOOKUP(B50,TYPEPREFIX,2,FALSE)) & D50","v":"- Keine Wiederholung identischer Aussagen über mehrere Abschnitte hinweg."}]
[null,null,null,null,null,{"$f":"IF(B51=\"\",\"\",VLOOKUP(B51,TYPEPREFIX,2,FALSE)) & D51","v":""}]
[null,null,null,null,null,{"$f":"IF(B52=\"\",\"\",VLOOKUP(B52,TYPEPREFIX,2,FALSE)) & D52","v":""}]
[null,null,null,null,null,{"$f":"IF(B53=\"\",\"\",VLOOKUP(B53,TYPEPREFIX,2,FALSE)) & D53","v":""}]
[null,null,null,null,null,"</output_verbosity_spec>"]
[null,"Format",null,"INHALT",null,"<output_format>"]
[null,"Überschrift",null,"Referenz={REFERENCE_ID}",null,{"$f":"IF(B56=\"\",\"\",VLOOKUP(B56,TYPEPREFIX,2,FALSE)) & D56","v":"### Referenz={REFERENCE_ID}"}]
[null,"Überschrift",null,"Executive Summary",null,"### Executive Summary"]
[null,"Anweisung",null,"Zusammenfassung der wichtigsten datenbasierten Erkenntnisse.",null,">>> Zusammenfassung der wichtigsten datenbasierten Erkenntnisse."]
[null,"Überschrift",null,"KPI-Überblick",null,"### KPI-Überblick"]
[null,"Anweisung",null,"Darstellung und Interpretation der zentralen Kennzahlen auf Basis der vorhandenen Daten und deren Berechnung.",null,">>> Darstellung und Interpretation der zentralen Kennzahlen auf Basis der vorhandenen Daten und deren Berechnung."]
[null,"Überschrift",null,"Trend- und Musteranalyse",null,"### Trend- und Musteranalyse"]
[null,"Anweisung",null,"Beschreibung erkennbarer Entwicklungen oder Auffälligkeiten innerhalb des Datensatzes.",null,">>> Beschreibung erkennbarer Entwicklungen oder Auffälligkeiten innerhalb des Datensatzes."]
[null,"Überschrift",null,"Risiken & Einschränkungen",null,"### Risiken & Einschränkungen"]
[null,"Anweisung",null,"Hinweise auf Datenlücken, Strukturprobleme oder Interpretationsgrenzen.",null,">>> Hinweise auf Datenlücken, Strukturprobleme oder Interpretationsgrenzen."]
[null,"Überschrift",null,"Chancen",null,"### Chancen"]
[null,"Anweisung",null,"Beobachtbare positive Entwicklungspotenziale.",null,">>> Beobachtbare positive Entwicklungspotenziale."]
[null,"Überschrift",null,"Empfehlungen",null,"### Empfehlungen"]
[null,"Anweisung",null,"Sachliche, datenbasierte Handlungshinweise.",null,">>> Sachliche, datenbasierte Handlungshinweise."]
[null,null,null,null,null,""]
[null,null,null,null,null,""]
[null,null,null,null,null,""]
[null,null,null,null,null,""]
[null,null,null,null,null,""]
[null,null,null,null,null,""]
[null,null,null,null,null,""]
[null,null,null,null,null,"</output_format>"]
[null,"Format",null,"weitere Vorgaben",null,"<constraints>"]
[null,"Punt aus einer Liste",null,"Keine Annahmen außerhalb der Daten.",null,{"$f":"IF(B78=\"\",\"\",VLOOKUP(B78,TYPEPREFIX,2,FALSE)) & D78","v":"- Keine Annahmen außerhalb der Daten."}]
[null,"Punt aus einer Liste",null,"Keine Schlussfolgerungen ohne explizite Datenbasis.",null,{"$f":"IF(B79=\"\",\"\",VLOOKUP(B79,TYPEPREFIX,2,FALSE)) & D79","v":"- Keine Schlussfolgerungen ohne explizite Datenbasis."}]
[null,null,null,null,null,{"$f":"IF(B80=\"\",\"\",VLOOKUP(B80,TYPEPREFIX,2,FALSE)) & D80","v":""}]
[null,null,null,null,null,{"$f":"IF(B81=\"\",\"\",VLOOKUP(B81,TYPEPREFIX,2,FALSE)) & D81","v":""}]
[null,null,null,null,null,{"$f":"IF(B82=\"\",\"\",VLOOKUP(B82,TYPEPREFIX,2,FALSE)) & D82","v":""}]
[null,null,null,null,null,"</constraints>"]
[null,"Format",null,"abschließender Check",null,"<self_check>"]
[null,"Punt aus einer Liste",null,"Prüfe vor Ausgabe, ob alle Validierungs‑, Analyse‑ und Formatregeln eingehalten wurden.",null,{"$f":"IF(B85=\"\",\"\",VLOOKUP(B85,TYPEPREFIX,2,FALSE)) & D85","v":"- Prüfe vor Ausgabe, ob alle Validierungs‑, Analyse‑ und Formatregeln eingehalten wurden."}]
[null,"Punt aus einer Liste",null,"Bei Regelverstoß: korrigiere den Output automatisch.",null,{"$f":"IF(B86=\"\",\"\",VLOOKUP(B86,TYPEPREFIX,2,FALSE)) & D86","v":"- Bei Regelverstoß: korrigiere den Output automatisch."}]
[null,null,null,null,null,{"$f":"IF(B87=\"\",\"\",VLOOKUP(B87,TYPEPREFIX,2,FALSE)) & D87","v":""}]
[null,null,null,null,null,{"$f":"IF(B88=\"\",\"\",VLOOKUP(B88,TYPEPREFIX,2,FALSE)) & D88","v":""}]
[null,null,null,null,null,{"$f":"IF(B89=\"\",\"\",VLOOKUP(B89,TYPEPREFIX,2,FALSE)) & D89","v":""}]
[null,null,null,null,null,"</self_check>"]

{"sheet":"SYSTEM","index":3,"n_rows":15,"n_cols":3,"rows_kept":15,"cut":false,"hidden":false,"merged":[]}
[]
[null,"SYSTEM"]
[]
[null,"E-Mail-Adresse"]
[null,"Api-Key"]
[null,"Anzahl ausgeführter Prompts"]
[]
[null,"Informationen zum Jahresabo","Informationen zum Jahresabo (hier klicken)"]
[]
[]
[null,"Formate"]
[null,"Text (allgemein)"]
[null,"Überschrift","### "]
[null,"Anweisung",">>> "]
[null,"Punt aus einer Liste","- "]